[Event "Slovakia Chess Open 2024"]
[Site "Modra"]
[Date "2024.03.02"]
[Round "3.4"]
[White "Shirinyan, Daniel"]
[Black "Visvader, Kristof"]
[Result "1-0"]
[ECO "D36"]
[WhiteElo "2177"]
[BlackElo "1696"]
[Annotator "RC"]
[PlyCount "81"]
[EventDate "2024.02.29"]
[EventType "swiss"]
[EventCountry "SVK"]
[SourceTitle "playchess.com"]
[Source "ChessBase"]
[SourceQuality "1"]
[TimeControl "5400+30"]

1. d4 {[%emt 0:00:15]} d5 {[%emt 0:00:03]} 2. c4 {[%emt 0:00:00]} c6 {[%emt 0:01:26]} 3. Nc3 {[%emt 0:00:00]} Nf6 {[%emt 0:00:30]} 4. Bg5 {[%emt 0:00:00]} e6 {[%emt 0:00:30]} 5. cxd5 {[%emt 0:00:27]} exd5 {[%emt 0:00:30]} 6. Qc2 {[%emt 0:00:30]} Bd6 {[%emt 0:00:30]} 7. e3 {[%emt 0:01:09]} O-O {[%emt 0:02:07]} 8. Bd3 {[%emt 0:00:24]} h6 {[%emt 0:00:30]} 9. Bh4 {[%emt 0:00:05]} Nbd7 {[%emt 0:01:53]} 10. Nge2 {[%emt 0:02:00]} Qc7 {[%emt 0:05:56]} 11. h3 {[%emt 0:02:36]} Re8 {[%emt 0:02:19]} 12. Bg3 {[%emt 0:01:20]} a5 {[%emt 0:02:59]} 13. Nb5 {[%emt 0:07:12]} cxb5 {[%emt 0:05:01]} 14. Qxc7 {[%emt 0:00:05]} Bxc7 {[%emt 0:00:18]} 15. Bxc7 {[%emt 0:00:02]} b4 {[%emt 0:00:36]} 16. Rc1 {[%emt 0:05:08]} b6 {[%emt 0:02:34]} 17. O-O {[%emt 0:03:52]} Ba6 {[%emt 0:02:39]} 18. Bxa6 {[%emt 0:00:21]} Rxa6 {[%emt 0:00:06]} 19. Rc6 {[%emt 0:01:25]} Rc8 {[%emt 0:00:48]} 20. Rfc1 {[%emt 0:00:23]} Ne8 {[%emt 0:03:14]} 21. Nf4 {[%emt 0:04:39]} Nef6 {[%emt 0:08:08]} 22. f3 {[%emt 0:02:06]} Re8 {[%emt 0:03:18]} 23. Kf2 {[%emt 0:00:11]} g5 {[%emt 0:01:19]} 24. Nd3 {[%emt 0:00:40]} Re6 {[%emt 0:00:37]} 25. Rxe6 {[%emt 0:04:44]} fxe6 {[%emt 0:00:27]} 26. Rc6 {[%emt 0:00:03]} Kf7 {[%emt 0:02:48]} 27. Nc5 {[%emt 0:00:28]} Ra8 {[%emt 0:07:05]} 28. Bxb6 {[%emt 0:00:39]} Nxc5 {[%emt 0:01:27]} 29. Bxc5 {[%emt 0:00:16]} Nd7 {[%emt 0:01:29]} 30. Bd6 {[%emt 0:00:21]} Ra7 {[%emt 0:02:26]} 31. Ke2 {[%emt 0:05:42]} Rb7 {[%emt 0:05:07]} 32. Rc7 {[%emt 0:00:29]} Rxc7 {[%emt 0:00:54]} 33. Bxc7 {[%emt 0:00:04]} a4 {[%emt 0:00:31]} 34. b3 {[%emt 0:00:04]} axb3 {[%emt 0:00:47]} 35. axb3 {[%emt 0:00:07]} Kf6 {[%emt 0:01:00]} 36. g4 {[%emt 0:00:47]} e5 {[%emt 0:00:56]} 37. Bxe5+ {[%emt 0:00:29]} Nxe5 {[%emt 0:00:06]} 38. dxe5+ {[%emt 0:00:04]} Kxe5 {[%emt 0:00:05]} 39. Kd3 {[%emt 0:00:03]} Ke6 {[%emt 0:00:21]} 40. Kd4 {[%emt 0:00:06]} Kd6 {[%emt 0:00:05]} 41. e4 {[%emt 0:00:12]} 1-0

[Event "Slovakia Chess Open 2024"]
[Site "Modra"]
[Date "2024.03.02"]
[Round "3.5"]
[White "Petrik, Matus"]
[Black "Oruzinsky, Juraj"]
[Result "0-1"]
[ECO "E65"]
[WhiteElo "1812"]
[BlackElo "2160"]
[Annotator "RC"]
[PlyCount "88"]
[EventDate "2024.02.29"]
[EventType "swiss"]
[EventCountry "SVK"]
[SourceTitle "playchess.com"]
[Source "ChessBase"]
[SourceQuality "1"]
[TimeControl "5400+30"]

1. c4 {[%emt 0:11:30]} Nf6 {[%emt 0:00:05]} 2. Nc3 {[%emt 0:00:09]} g6 {[%emt 0:00:04]} 3. g3 {[%emt 0:00:10]} Bg7 {[%emt 0:01:10]} 4. Bg2 {[%emt 0:00:06]} O-O {[%emt 0:00:15]} 5. Nf3 {[%emt 0:00:53]} d6 {[%emt 0:00:14]} 6. O-O {[%emt 0:00:19]} Nbd7 {[%emt 0:00:25]} 7. d4 {[%emt 0:01:09]} c5 {[%emt 0:01:29]} 8. Qc2 {[%emt 0:02:26]} cxd4 {[%emt 0:12:33]} 9. Nxd4 {[%emt 0:00:13]} Nc5 {[%emt 0:00:51]} 10. Rd1 {[%emt 0:02:55]} Bd7 {[%emt 0:08:40]} 11. b3 {[%emt 0:02:59]} Qc8 {[%emt 0:00:41]} 12. Bb2 {[%emt 0:01:10]} Bh3 {[%emt 0:01:49]} 13. Nd5 {[%emt 0:01:03]} Nxd5 {[%emt 0:02:09]} 14. Bxd5 {[%emt 0:00:06]} a6 {[%emt 0:04:40]} 15. Rac1 {[%emt 0:00:58]} Rb8 {[%emt 0:01:36]} 16. Qd2 {[%emt 0:13:42]} Nd7 {[%emt 0:11:05]} 17. Qe3 {[%emt 0:05:42]} Ne5 {[%emt 0:05:48]} 18. Rc2 {[%emt 0:02:10]} Qc7 {[%emt 0:05:52]} 19. Rdc1 {[%emt 0:04:40]} Nc6 {[%emt 0:03:25]} 20. Qd2 {[%emt 0:16:42]} Qb6 {[%emt 0:11:25]} 21. Nxc6 {[%emt 0:07:55]} bxc6 {[%emt 0:00:15]} 22. Bxg7 {[%emt 0:00:15]} Kxg7 {[%emt 0:00:04]} 23. c5 {[%emt 0:03:52]} dxc5 {[%emt 0:04:49]} 24. Bf3 {[%emt 0:01:41]} Rbd8 {[%emt 0:06:37]} 25. Qe3 {[%emt 0:01:03]} Rd6 {[%emt 0:03:13]} 26. Rxc5 {[%emt 0:04:59]} Rfd8 {[%emt 0:00:54]} 27. Qc3+ {[%emt 0:00:04]} Kg8 {[%emt 0:00:57]} 28. e3 {[%emt 0:00:16]} Rd3 {[%emt 0:03:37]} 29. Qa1 {[%emt 0:01:16]} Rd2 {[%emt 0:04:54]} 30. Rxc6 {[%emt 0:02:25]} Qa5 {[%emt 0:00:45]} 31. R6c5 {[%emt 0:10:42]} Qxa2 {[%emt 0:00:29]} 32. Qxa2 {[%emt 0:00:04]} Rxa2 {[%emt 0:00:04]} 33. R5c2 {[%emt 0:00:20]} Ra3 {[%emt 0:02:46]} 34. Rb2 {[%emt 0:00:36]} Rb8 {[%emt 0:00:40]} 35. Bd5 {[%emt 0:01:00]} Kg7 {[%emt 0:01:38]} 36. f4 {[%emt 0:00:44]} a5 {[%emt 0:01:05]} 37. Kf2 {[%emt 0:00:37]} e6 {[%emt 0:00:45]} 38. Bc4 {[%emt 0:00:33]} Ra4 {[%emt 0:00:19]} 39. Rd2 {[%emt 0:00:25]} Rab4 {[%emt 0:00:18]} 40. Kf3 {[%emt 0:00:18]} h5 {[%emt 0:00:14]} 41. Rd7 {[%emt 0:00:44]} a4 {[%emt 0:00:23]} 42. bxa4 {[%emt 0:00:57]} Rxa4 {[%emt 0:00:07]} 43. Bb5 {[%emt 0:00:41]} Rxb5 {[%emt 0:00:36]} 44. Rcc7 {[%emt 0:00:02]} Bg4+ {[%emt 0:00:11]} 0-1

[Event "Slovakia Chess Open 2024"]
[Site "Modra"]
[Date "2024.03.02"]
[Round "3.6"]
[White "Pietrucha, Jaroslaw"]
[Black "Lepejova Viola"]
[Result "1-0"]
[ECO "C45"]
[WhiteElo "1781"]
[BlackElo "1000"]
[Annotator "NA RC"]
[PlyCount "51"]
[EventDate "2024.02.29"]
[EventType "swiss"]
[EventCountry "SVK"]
[SourceTitle "playchess.com"]
[Source "ChessBase"]
[SourceQuality "1"]
[TimeControl "5400+30"]

1. e4 {[%emt 0:00:02]} e5 {[%emt 0:00:09]} 2. Nf3 {[%emt 0:01:03]} Nc6 {[%emt 0:00:15]} 3. d4 {[%emt 0:00:41]} exd4 {[%emt 0:01:24]} 4. Nxd4 {[%emt 0:01:19]} Nxd4 {[%emt 0:01:18]} 5. Qxd4 {[%emt 0:07:24]} Be7 {[%emt 0:00:30]} 6. Qxg7 {[%emt 0:00:30]} Bf6 {[%emt 0:00:08]} 7. Qg3 {[%emt 0:01:00]} d6 {[%emt 0:01:29]} 8. Nc3 {[%emt 0:00:46]} Be6 {[%emt 0:01:15]} 9. Be2 {[%emt 0:00:53]} Be5 {[%emt 0:01:15]} 10. f4 {[%emt 0:02:05]} Bf6 {[%emt 0:01:23]} 11. O-O {[%emt 0:00:44]} c6 {[%emt 0:01:32]} 12. Kh1 {[%emt 0:03:01]} Qa5 {[%emt 0:02:57]} 13. f5 {[%emt 0:01:27]} Bd7 {[%emt 0:00:32]} 14. Bf4 {[%emt 0:06:07]} Be5 {[%emt 0:01:49]} 15. Bxe5 {[%emt 0:01:44]} dxe5 {[%emt 0:00:17]} 16. Qg7 {[%emt 0:04:01]} O-O-O {[%emt 0:00:35]} 17. Qxh8 {[%emt 0:01:06]} f6 {[%emt 0:03:34]} 18. Qxh7 {[%emt 0:01:05]} c5 {[%emt 0:03:35]} 19. Bc4 {[%emt 0:02:03]} b5 {[%emt 0:03:19]} 20. Bxg8 {[%emt 0:01:22]} b4 {[%emt 0:00:38]} 21. Nd5 {[%emt 0:01:41]} Bb5 {[%emt 0:01:21]} 22. Rfd1 {[%emt 0:01:31]} a6 {[%emt 0:05:20]} 23. Qa7 {[%emt 0:01:40]} Rd6 {[%emt 0:01:03]} 24. Ne7+ {[%emt 0:03:04]} Kd8 {[%emt 0:01:07]} 25. Rxd6+ {[%emt 0:03:28]} Ke8 {[%emt 0:00:06]} 26. Ng6 {[%emt 0:03:22]} 1-0

[Event "Slovakia Chess Open 2024"]
[Site "Modra"]
[Date "2024.03.02"]
[Round "3.7"]
[White "Bucor, Mark"]
[Black "Chojnacki, Kevin"]
[Result "1-0"]
[ECO "B04"]
[WhiteElo "1852"]
[BlackElo "1672"]
[Annotator "NA"]
[PlyCount "63"]
[EventDate "2024.02.29"]
[EventType "swiss"]
[EventCountry "SVK"]
[SourceTitle "playchess.com"]
[Source "ChessBase"]
[SourceQuality "1"]
[TimeControl "5400+30"]

1. e4 {[%emt 0:00:07]} Nf6 {[%emt 0:00:09]} 2. e5 {[%emt 0:00:06]} Nd5 {[%emt 0:00:09]} 3. d4 {[%emt 0:00:06]} Nb6 {[%emt 0:00:19]} 4. c4 {[%emt 0:00:17]} d6 {[%emt 0:00:09]} 5. exd6 {[%emt 0:00:10]} cxd6 {[%emt 0:00:10]} 6. Nf3 {[%emt 0:01:10]} g6 {[%emt 0:00:08]} 7. Nc3 {[%emt 0:00:37]} Bg7 {[%emt 0:00:04]} 8. Be3 {[%emt 0:00:29]} Be6 {[%emt 0:03:15]} 9. Rc1 {[%emt 0:02:19]} O-O {[%emt 0:00:16]} 10. b3 {[%emt 0:00:23]} Bg4 {[%emt 0:00:22]} 11. Be2 {[%emt 0:00:45]} Bxf3 {[%emt 0:01:22]} 12. Bxf3 {[%emt 0:00:13]} Nc6 {[%emt 0:00:03]} 13. O-O {[%emt 0:16:17]} e5 {[%emt 0:02:47]} 14. Bxc6 {[%emt 0:00:10]} bxc6 {[%emt 0:00:11]} 15. dxe5 {[%emt 0:00:10]} dxe5 {[%emt 0:00:14]} 16. Qf3 {[%emt 0:00:40]} Qf6 {[%emt 0:00:20]} 17. Qg3 {[%emt 0:00:46]} Qe6 {[%emt 0:01:17]} 18. f4 {[%emt 0:12:15]} exf4 {[%emt 0:03:31]} 19. Bxf4 {[%emt 0:01:35]} h5 {[%emt 0:06:38]} 20. Rce1 {[%emt 0:01:52]} Qg4 {[%emt 0:01:30]} 21. Qxg4 {[%emt 0:06:31]} hxg4 {[%emt 0:02:56]} 22. Ne4 {[%emt 0:01:35]} f5 {[%emt 0:06:24]} 23. Ng5 {[%emt 0:01:51]} Rfe8 {[%emt 0:02:20]} 24. Ne6 {[%emt 0:01:15]} Re7 {[%emt 0:06:15]} 25. Nxg7 {[%emt 0:03:55]} Rxg7 {[%emt 0:00:37]} 26. Re6 {[%emt 0:00:28]} Nd7 {[%emt 0:06:32]} 27. Rxc6 {[%emt 0:01:10]} g5 {[%emt 0:00:25]} 28. Bd6 {[%emt 0:01:55]} f4 {[%emt 0:00:40]} 29. Re1 {[%emt 0:00:39]} Rg6 {[%emt 0:03:27]} 30. c5 {[%emt 0:02:12]} g3 {[%emt 0:10:42]} 31. hxg3 {[%emt 0:00:15]} fxg3 {[%emt 0:00:14]} 32. Rc7 {[%emt 0:00:08]} 1-0

[Event "Slovakia Chess Open 2024"]
[Site "Modra"]
[Date "2024.03.02"]
[Round "3.8"]
[White "Melih, Mario"]
[Black "Zentko, Ladislav"]
[Result "1-0"]
[ECO "C79"]
[WhiteElo "1930"]
[BlackElo "1749"]
[Annotator "NA RC"]
[PlyCount "73"]
[EventDate "2024.02.29"]
[EventType "swiss"]
[EventCountry "SVK"]
[SourceTitle "playchess.com"]
[Source "ChessBase"]
[SourceQuality "1"]
[TimeControl "5400+30"]

1. e4 {[%emt 0:00:11]} e5 {[%emt 0:00:10]} 2. Nf3 {[%emt 0:00:09]} Nc6 {[%emt 0:00:30]} 3. Bb5 {[%emt 0:00:06]} a6 {[%emt 0:00:00]} 4. Ba4 {[%emt 0:00:30]} d6 {[%emt 0:00:21]} 5. O-O {[%emt 0:00:30]} Nf6 {[%emt 0:00:13]} 6. d4 {[%emt 0:00:40]} Bd7 {[%emt 0:03:44]} 7. Re1 {[%emt 0:00:53]} Be7 {[%emt 0:01:12]} 8. c4 {[%emt 0:03:11]} O-O {[%emt 0:02:03]} 9. Bxc6 {[%emt 0:07:00]} Bxc6 {[%emt 0:01:59]} 10. d5 {[%emt 0:00:11]} Bd7 {[%emt 0:06:02]} 11. Nc3 {[%emt 0:01:39]} Ne8 {[%emt 0:02:32]} 12. Be3 {[%emt 0:01:29]} f5 {[%emt 0:02:16]} 13. exf5 {[%emt 0:01:30]} Bxf5 {[%emt 0:00:49]} 14. Nd2 {[%emt 0:02:19]} Bg5 {[%emt 0:03:53]} 15. Nde4 {[%emt 0:02:40]} Bxe3 {[%emt 0:02:52]} 16. Rxe3 {[%emt 0:00:15]} Nf6 {[%emt 0:03:39]} 17. Ng3 {[%emt 0:02:15]} Ng4 {[%emt 0:07:44]} 18. Nxf5 {[%emt 0:03:38]} Nxe3 {[%emt 0:02:20]} 19. Nxe3 {[%emt 0:00:12]} Qg5 {[%emt 0:00:26]} 20. Ne4 {[%emt 0:04:57]} Qg6 {[%emt 0:06:49]} 21. Qg4 {[%emt 0:04:48]} Qxg4 {[%emt 0:02:14]} 22. Nxg4 {[%emt 0:00:06]} b5 {[%emt 0:04:27]} 23. c5 {[%emt 0:01:34]} dxc5 {[%emt 0:00:30]} 24. Nxc5 {[%emt 0:00:30]} Rf4 {[%emt 0:00:30]} 25. Ne3 {[%emt 0:01:58]} Rd4 {[%emt 0:05:16]} 26. Ne6 {[%emt 0:02:51]} Rd2 {[%emt 0:03:57]} 27. Nxc7 {[%emt 0:00:30]} Rc8 {[%emt 0:00:31]} 28. Ne6 {[%emt 0:01:19]} Rxb2 {[%emt 0:01:34]} 29. Rd1 {[%emt 0:02:09]} Kf7 {[%emt 0:00:55]} 30. Ng5+ {[%emt 0:00:30]} Kg6 {[%emt 0:00:59]} 31. Ne4 {[%emt 0:01:26]} Rxa2 {[%emt 0:02:39]} 32. d6 {[%emt 0:03:01]} Ra4 {[%emt 0:03:41]} 33. d7 {[%emt 0:00:26]} Rd8 {[%emt 0:00:21]} 34. Rd6+ {[%emt 0:02:28]} Kf7 {[%emt 0:02:10]} 35. Ng5+ {[%emt 0:00:44]} Ke7 {[%emt 0:08:06]} 36. Nf5+ {[%emt 0:00:09]} Kf8 {[%emt 0:00:24]} 37. g3 {[%emt 0:03:08]} 1-0

[Event "Slovakia Chess Open 2024"]
[Site "Modra"]
[Date "2024.03.02"]
[Round "3.9"]
[White "Gonda, Jan"]
[Black "Novomeska, Karin"]
[Result "0-1"]
[ECO "D12"]
[WhiteElo "1657"]
[BlackElo "1929"]
[Annotator "NA RC"]
[PlyCount "74"]
[EventDate "2024.02.29"]
[EventType "swiss"]
[EventCountry "SVK"]
[SourceTitle "playchess.com"]
[Source "ChessBase"]
[SourceQuality "1"]
[TimeControl "5400+30"]

1. d4 {[%emt 0:00:04]} d5 {[%emt 0:00:05]} 2. c4 {[%emt 0:00:06]} c6 {[%emt 0:00:05]} 3. e3 {[%emt 0:00:07]} Nf6 {[%emt 0:00:43]} 4. Nf3 {[%emt 0:00:14]} Bf5 {[%emt 0:00:45]} 5. Nc3 {[%emt 0:00:13]} e6 {[%emt 0:00:50]} 6. a3 {[%emt 0:00:00]} Be7 {[%emt 0:01:24]} 7. b4 {[%emt 0:00:20]} O-O {[%emt 0:01:32]} 8. Bb2 {[%emt 0:00:07]} b6 {[%emt 0:07:26]} 9. Rc1 {[%emt 0:00:12]} c5 {[%emt 0:07:41]} 10. dxc5 {[%emt 0:02:15]} bxc5 {[%emt 0:00:32]} 11. bxc5 {[%emt 0:01:53]} dxc4 {[%emt 0:00:39]} 12. Qxd8 {[%emt 0:01:07]} Rxd8 {[%emt 0:00:19]} 13. Bxc4 {[%emt 0:00:17]} Nbd7 {[%emt 0:00:39]} 14. Na4 {[%emt 0:00:20]} Bxc5 {[%emt 0:00:25]} 15. O-O {[%emt 0:15:45]} Ne4 {[%emt 0:09:17]} 16. Nxc5 {[%emt 0:01:30]} Ndxc5 {[%emt 0:00:42]} 17. Bd4 {[%emt 0:06:27]} Rac8 {[%emt 0:03:08]} 18. h3 {[%emt 0:01:31]} Nd6 {[%emt 0:01:08]} 19. Be2 {[%emt 0:07:08]} Nb3 {[%emt 0:08:14]} 20. Rxc8 {[%emt 0:01:01]} Rxc8 {[%emt 0:06:32]} 21. Bxa7 {[%emt 0:04:33]} Ra8 {[%emt 0:06:17]} 22. Rd1 {[%emt 0:02:16]} Rxa7 {[%emt 0:21:18]} 23. Rxd6 {[%emt 0:00:15]} g6 {[%emt 0:00:11]} 24. Bd3 {[%emt 0:24:01]} Rxa3 {[%emt 0:03:08]} 25. Bxf5 {[%emt 0:04:35]} exf5 {[%emt 0:00:15]} 26. Rd3 {[%emt 0:03:44]} Ra1+ {[%emt 0:00:30]} 27. Kh2 {[%emt 0:00:30]} Nc5 {[%emt 0:00:30]} 28. Rd2 {[%emt 0:00:30]} Ne4 {[%emt 0:00:21]} 29. Rd8+ {[%emt 0:04:12]} Kg7 {[%emt 0:00:06]} 30. Rd4 {[%emt 0:08:27]} Nxf2 {[%emt 0:02:46]} 31. Kg3 {[%emt 0:00:09]} Ne4+ {[%emt 0:00:45]} 32. Kf4 {[%emt 0:01:17]} Nf6 {[%emt 0:03:04]} 33. Rd2 {[%emt 0:02:05]} h6 {[%emt 0:01:11]} 34. Rc2 {[%emt 0:00:48]} Nd5+ {[%emt 0:00:38]} 35. Kg3 {[%emt 0:02:19]} Nxe3 {[%emt 0:00:16]} 36. Rb2 {[%emt 0:00:54]} g5 {[%emt 0:01:01]} 37. Rd2 {[%emt 0:02:01]} Nf1+ {[%emt 0:00:07]} 0-1

[Event "Slovakia Chess Open 2024"]
[Site "Modra"]
[Date "2024.03.02"]
[Round "3.10"]
[White "Kukla, Tomas"]
[Black "Li, Geng Hui"]
[Result "1-0"]
[ECO "C18"]
[WhiteElo "1864"]
[BlackElo "1555"]
[Annotator "NA RC"]
[PlyCount "39"]
[EventDate "2024.02.29"]
[EventType "swiss"]
[EventCountry "SVK"]
[SourceTitle "playchess.com"]
[Source "ChessBase"]
[SourceQuality "1"]
[TimeControl "5400+30"]

1. e4 {[%emt 0:00:04]} e6 {[%emt 0:00:10]} 2. d4 {[%emt 0:00:08]} d5 {[%emt 0:00:10]} 3. Nc3 {[%emt 0:00:13]} Bb4 {[%emt 0:00:15]} 4. e5 {[%emt 0:00:25]} Ne7 {[%emt 0:00:24]} 5. a3 {[%emt 0:01:39]} Bxc3+ {[%emt 0:00:17]} 6. bxc3 {[%emt 0:00:07]} c5 {[%emt 0:00:42]} 7. Qg4 {[%emt 0:00:35]} Qa5 {[%emt 0:00:26]} 8. Bd2 {[%emt 0:00:45]} Ng6 {[%emt 0:01:55]} 9. h4 {[%emt 0:02:44]} h5 {[%emt 0:00:41]} 10. Qg3 {[%emt 0:00:44]} Qc7 {[%emt 0:00:20]} 11. Bd3 {[%emt 0:01:04]} Nc6 {[%emt 0:01:36]} 12. Bxg6 {[%emt 0:04:15]} fxg6 {[%emt 0:00:21]} 13. Qxg6+ {[%emt 0:00:08]} Kd8 {[%emt 0:00:23]} 14. Bg5+ {[%emt 0:01:18]} Ne7 {[%emt 0:02:29]} 15. Qxg7 {[%emt 0:00:34]} Re8 {[%emt 0:00:12]} 16. Nf3 {[%emt 0:07:51]} cxd4 {[%emt 0:00:19]} 17. O-O {[%emt 0:00:26]} d3 {[%emt 0:01:05]} 18. cxd3 {[%emt 0:08:27]} Bd7 {[%emt 0:00:44]} 19. Rac1 {[%emt 0:05:12]} Kc8 {[%emt 0:00:12]} 20. Bxe7 {[%emt 0:00:39]} 1-0

[Event "Slovakia Chess Open 2024"]
[Site "Modra"]
[Date "2024.03.02"]
[Round "3.11"]
[White "Mruskovic, Ondrej"]
[Black "Pisarcik, Richard"]
[Result "0-1"]
[ECO "C67"]
[WhiteElo "1510"]
[BlackElo "1855"]
[Annotator "NA RC"]
[PlyCount "44"]
[EventDate "2024.02.29"]
[EventType "swiss"]
[EventCountry "SVK"]
[SourceTitle "playchess.com"]
[Source "ChessBase"]
[SourceQuality "1"]
[TimeControl "5400+30"]

1. e4 {[%emt 0:00:01]} e5 {[%emt 0:00:42]} 2. Nf3 {[%emt 0:00:07]} Nc6 {[%emt 0:00:06]} 3. Bb5 {[%emt 0:00:07]} Nf6 {[%emt 0:00:06]} 4. O-O {[%emt 0:00:10]} Nxe4 {[%emt 0:00:03]} 5. Re1 {[%emt 0:00:12]} Nd6 {[%emt 0:00:06]} 6. Nxe5 {[%emt 0:00:35]} Be7 {[%emt 0:00:05]} 7. Nxc6 {[%emt 0:00:41]} dxc6 {[%emt 0:00:26]} 8. Ba4 {[%emt 0:00:13]} a5 {[%emt 0:00:21]} 9. c3 {[%emt 0:00:27]} Bf5 {[%emt 0:00:28]} 10. d4 {[%emt 0:01:06]} O-O {[%emt 0:01:42]} 11. Bc2 {[%emt 0:03:02]} Bf6 {[%emt 0:04:08]} 12. Bf4 {[%emt 0:01:18]} Qd7 {[%emt 0:02:40]} 13. Nd2 {[%emt 0:03:19]} Rfe8 {[%emt 0:00:33]} 14. f3 {[%emt 0:08:00]} Rxe1+ {[%emt 0:01:58]} 15. Qxe1 {[%emt 0:00:24]} Bxc2 {[%emt 0:00:20]} 16. Qf2 {[%emt 0:03:53]} Bg6 {[%emt 0:01:57]} 17. Nb3 {[%emt 0:02:26]} b6 {[%emt 0:02:13]} 18. Rd1 {[%emt 0:00:39]} Re8 {[%emt 0:02:56]} 19. Rc1 {[%emt 0:08:07]} Qf5 {[%emt 0:03:13]} 20. Qg3 {[%emt 0:01:43]} Qd3 {[%emt 0:02:02]} 21. Bxd6 {[%emt 0:02:27]} cxd6 {[%emt 0:00:42]} 22. Qxd6 {[%emt 0:01:16]} Qe3+ {[%emt 0:00:10]} 0-1

[Event "Slovakia Chess Open 2024"]
[Site "Modra"]
[Date "2024.03.02"]
[Round "3.13"]
[White "Loffay, Pavol"]
[Black "Gecik Jergus"]
[Result "1-0"]
[ECO "C30"]
[WhiteElo "1753"]
[BlackElo "1000"]
[Annotator "NA RC"]
[PlyCount "48"]
[EventDate "2024.02.29"]
[EventType "swiss"]
[EventCountry "SVK"]
[SourceTitle "playchess.com"]
[Source "ChessBase"]
[SourceQuality "1"]
[TimeControl "5400+30"]

1. f4 {[%emt 0:00:04]} e5 {[%emt 0:00:51]} 2. e4 {[%emt 0:00:13]} Bc5 {[%emt 0:00:49]} 3. Nf3 {[%emt 0:00:10]} Nf6 {[%emt 0:01:11]} 4. Nc3 {[%emt 0:01:54]} exf4 {[%emt 0:01:12]} 5. d4 {[%emt 0:00:06]} Bb4 {[%emt 0:00:32]} 6. Bd3 {[%emt 0:01:36]} Nc6 {[%emt 0:00:51]} 7. Bxf4 {[%emt 0:01:55]} d5 {[%emt 0:00:49]} 8. e5 {[%emt 0:03:10]} Ne4 {[%emt 0:00:46]} 9. Bd2 {[%emt 0:02:54]} Bg4 {[%emt 0:03:32]} 10. Nxe4 {[%emt 0:04:52]} dxe4 {[%emt 0:02:43]} 11. Bxe4 {[%emt 0:00:30]} Bxd2+ {[%emt 0:00:30]} 12. Qxd2 {[%emt 0:00:08]} Bxf3 {[%emt 0:04:15]} 13. Bxf3 {[%emt 0:00:53]} Nxd4 {[%emt 0:01:27]} 14. O-O-O {[%emt 0:01:59]} c5 {[%emt 0:01:02]} 15. Qf4 {[%emt 0:07:55]} f6 {[%emt 0:03:13]} 16. c3 {[%emt 0:02:58]} fxe5 {[%emt 0:01:10]} 17. Qxe5+ {[%emt 0:00:27]} Kf7 {[%emt 0:04:07]} 18. cxd4 {[%emt 0:02:27]} cxd4 {[%emt 0:04:27]} 19. Rxd4 {[%emt 0:03:44]} Qc8+ {[%emt 0:02:06]} 20. Kb1 {[%emt 0:00:14]} Re8 {[%emt 0:00:15]} 21. Bd5+ {[%emt 0:01:11]} Re6 {[%emt 0:03:44]} 22. Bxe6+ {[%emt 0:00:29]} Qxe6 {[%emt 0:00:37]} 23. Rf1+ {[%emt 0:01:08]} Ke7 {[%emt 0:00:28]} 24. Qxg7+ {[%emt 0:00:15]} Ke8 {[%emt 0:00:56]} 1-0

[Event "Slovakia Chess Open 2024"]
[Site "Modra"]
[Date "2024.03.02"]
[Round "3.14"]
[White "Pikulik, Roman"]
[Black "Nosal, Tobias"]
[Result "0-1"]
[ECO "A21"]
[WhiteElo "1675"]
[BlackElo "1773"]
[Annotator "NA RC"]
[PlyCount "82"]
[EventDate "2024.02.29"]
[EventType "swiss"]
[EventCountry "SVK"]
[SourceTitle "playchess.com"]
[Source "ChessBase"]
[SourceQuality "1"]
[TimeControl "5400+30"]

1. c4 {[%emt 0:00:06]} f5 {[%emt 0:00:12]} 2. Nc3 {[%emt 0:00:33]} Nf6 {[%emt 0:00:35]} 3. g3 {[%emt 0:00:41]} e5 {[%emt 0:01:42]} 4. d3 {[%emt 0:01:38]} d6 {[%emt 0:04:11]} 5. Bg2 {[%emt 0:00:16]} Be7 {[%emt 0:00:52]} 6. Nf3 {[%emt 0:02:57]} O-O {[%emt 0:01:26]} 7. O-O {[%emt 0:00:36]} a5 {[%emt 0:06:36]} 8. Rb1 {[%emt 0:08:22]} Qe8 {[%emt 0:04:28]} 9. Ne1 {[%emt 0:09:07]} Qh5 {[%emt 0:12:13]} 10. e3 {[%emt 0:08:28]} Qxd1 {[%emt 0:05:38]} 11. Nxd1 {[%emt 0:00:19]} c6 {[%emt 0:06:40]} 12. Nc3 {[%emt 0:00:21]} Na6 {[%emt 0:02:56]} 13. a3 {[%emt 0:00:55]} Nc7 {[%emt 0:03:47]} 14. b4 {[%emt 0:06:17]} axb4 {[%emt 0:04:11]} 15. axb4 {[%emt 0:00:13]} Be6 {[%emt 0:10:03]} 16. b5 {[%emt 0:08:10]} d5 {[%emt 0:07:54]} 17. bxc6 {[%emt 0:07:24]} bxc6 {[%emt 0:02:04]} 18. Rb7 {[%emt 0:05:22]} Rfc8 {[%emt 0:02:10]} 19. Nf3 {[%emt 0:08:56]} Nd7 {[%emt 0:05:48]} 20. cxd5 {[%emt 0:03:20]} cxd5 {[%emt 0:07:17]} 21. e4 {[%emt 0:00:31]} fxe4 {[%emt 0:01:41]} 22. dxe4 {[%emt 0:01:56]} Nc5 {[%emt 0:02:51]} 23. Rb6 {[%emt 0:03:22]} d4 {[%emt 0:01:22]} 24. Nb5 {[%emt 0:01:07]} Nxb5 {[%emt 0:01:00]} 25. Rxb5 {[%emt 0:00:59]} Bc4 {[%emt 0:00:20]} 26. Rxc5 {[%emt 0:01:02]} Bxc5 {[%emt 0:01:03]} 27. Re1 {[%emt 0:00:25]} Bb4 {[%emt 0:00:48]} 28. Bd2 {[%emt 0:00:22]} Bxd2 {[%emt 0:00:38]} 29. Nxd2 {[%emt 0:00:06]} Kf7 {[%emt 0:01:40]} 30. h4 {[%emt 0:00:14]} Ra2 {[%emt 0:00:59]} 31. Nf3 {[%emt 0:00:09]} Kf6 {[%emt 0:00:26]} 32. Bh3 {[%emt 0:00:48]} Rb8 {[%emt 0:01:07]} 33. Rc1 {[%emt 0:00:28]} Bd3 {[%emt 0:01:37]} 34. Rc6+ {[%emt 0:01:54]} Ke7 {[%emt 0:00:25]} 35. Re6+ {[%emt 0:01:15]} Kf8 {[%emt 0:00:33]} 36. Rxe5 {[%emt 0:00:09]} Rb1+ {[%emt 0:00:30]} 37. Kg2 {[%emt 0:00:57]} Bf1+ {[%emt 0:00:15]} 38. Kh2 {[%emt 0:00:10]} Rxf2+ {[%emt 0:00:26]} 39. Bg2 {[%emt 0:00:34]} Bxg2 {[%emt 0:00:48]} 40. Rf5+ {[%emt 0:00:18]} Ke7 {[%emt 0:00:33]} 41. Nxd4 {[%emt 0:02:04]} Rh1# {[%emt 0:00:19]} 0-1